bitfinex/quotes_ETHUSD_20230111
["timestamp","ask_amount","ask_price","bid_price","bid_amount"]
[1673400581426,6.79966064,1336.5,1336.4,0.20861643]
[1673400582044,14.28188064,1336.5,1336.4,0.20861643]
[1673400583054,21.76410064,1336.5,1336.4,0.20861643]
[1673400583312,0.002,1336.5,1336.4,20.22517643]
[1673400583520,14.064,1336.6,1336.4,21.97446715]
[1673400583521,0.002,1336.6,1336.4,21.97446715]
[1673400583836,14.002,1336.7,1336.5,9.67965671]
[1673400584012,14.002,1336.7,1336.5,9.74494743]
[1673400584222,14.002,1336.7,1336.5,17.22716743]
[1673400584425,14.002,1336.7,1336.5,19.22716743]
[1673400584649,14.002,1336.7,1336.5,17.22716743]
[1673400586097,17.79966064,1336.7,1336.5,2.26273743]
[1673400586305,17.79966064,1336.7,1336.4,19.69678715]
[1673400586634,17.79966064,1336.7,1336.5,7.48217]
[1673400586849,17.79966064,1336.7,1336.5,7.54746072]
[1673400587047,32.76206064,1336.7,1336.5,0.06529072]
[1673400587257,32.76206064,1336.7,1336.4,4.66661643]
[1673400587985,25.28077064,1336.7,1336.4,4.66661643]
[1673400588192,25.28080064,1336.7,1336.4,15.1808686]
[1673400588407,25.28080064,1336.7,1336.4,15.24615932]
[1673400588631,32.76188064,1336.7,1336.4,7.76340932]
[1673400588857,25.28077064,1336.7,1336.4,4.73190715]
[1673400589074,17.79966064,1336.7,1336.4,12.14933643]
[1673400589300,17.79966064,1336.7,1336.4,12.21462715]
[1673400589611,3.79766064,1336.6,1336.4,12.21462715]
[1673400590728,3.79766064,1336.6,1336.4,4.73190715]
[1673400590970,3.79766064,1336.6,1336.4,1.89261643]
[1673400591296,11.27945064,1336.6,1336.4,1.89261643]
[1673400591608,14.97678323,1336.6,1336.4,0.20861643]
[1673400592191,7.49499323,1336.6,1336.4,0.20861643]
[1673400593455,21.02766064,1336.5,1336.4,0.20861643]
[1673400593676,43.47632064,1336.5,1336.4,0.20861643]
[1673400595871,35.99410064,1336.5,1336.4,0.20861643]
[1673400596079,41.92331186,1336.5,1336.4,0.20861643]
[1673400596839,41.92331186,1336.5,1336.4,0.20495153]
[1673400597270,34.44109186,1336.5,1336.4,0.20495153]
[1673400600335,41.92331186,1336.5,1336.4,0.20495153]
[1673400600838,49.40553186,1336.5,1336.4,0.20495153]
[1673400601250,26.95887186,1336.5,1336.4,0.20495153]
[1673400601465,41.92331186,1336.5,1336.4,0.20495153]
[1673400601876,49.40553186,1336.5,1336.4,0.20495153]
[1673400602423,50.15765087,1336.5,1336.4,0.20495153]
[1673400603647,47.16243087,1336.5,1336.4,0.20495153]
[1673400603856,54.64465087,1336.5,1336.4,0.20495153]
[1673400604099,47.16243087,1336.5,1336.4,0.20495153]
[1673400604803,54.64465087,1336.5,1336.4,0.20495153]
[1673400605796,47.16243087,1336.5,1336.4,0.20495153]
[1673400606937,54.64465087,1336.5,1336.4,0.20495153]
[1673400607148,47.16243087,1336.5,1336.4,0.20495153]
[1673400607658,54.64465087,1336.5,1336.4,0.20495153]
[1673400608193,56.32865087,1336.5,1336.4,0.20495153]
[1673400608427,59.67776593,1336.5,1336.4,0.20495153]
[1673400613365,56.32865087,1336.5,1336.4,0.20495153]
[1673400613575,55.57653186,1336.5,1336.4,0.20495153]
[1673400613732,59.67776593,1336.5,1336.4,0.20495153]
[1673400613942,56.32865087,1336.5,1336.4,0.20495153]
[1673400614472,59.67776593,1336.5,1336.4,0.20495153]
[1673400614841,56.32865087,1336.5,1336.4,0.20495153]
[1673400615006,60.23916593,1336.5,1336.4,0.20495153]
[1673400615656,56.89005087,1336.5,1336.4,0.20495153]
[1673400616725,60.23916593,1336.5,1336.4,0.20495153]
[1673400617836,56.89005087,1336.5,1336.4,0.20495153]
[1673400619115,60.23916593,1336.5,1336.4,0.20495153]
[1673400620039,60.23916593,1336.5,1336.4,0.20131051]
[1673400620249,65.84540871,1336.5,1336.4,0.20131051]
[1673400620720,70.84540871,1336.5,1336.4,0.20131051]
[1673400620879,89.96970871,1336.5,1336.4,0.20131051]
[1673400621563,91.65370871,1336.5,1336.4,0.20131051]
[1673400622149,99.51970871,1336.5,1336.4,0.20131051]
[1673400622362,100.0890786,1336.5,1336.4,0.20131051]
[1673400623195,99.52358831,1336.5,1336.4,0.20131051]
[1673400623405,100.0890786,1336.5,1336.4,0.20131051]
[1673400624033,99.4070786,1336.5,1336.4,0.20131051]
[1673400625691,106.65495959,1336.5,1336.4,0.20131051]
[1673400625902,106.65495959,1336.5,1336.4,5.1e-07]
[1673400625903,107.4070786,1336.5,1336.4,5.1e-07]
[1673400626112,108.88163887,1336.5,1336.3,0.055222]
[1673400626324,25.4818369,1336.4,1336.3,0.055222]
[1673400626545,47.60372354,1336.4,1336.3,0.055222]
[1673400626731,65.62594255,1336.4,1336.3,0.0551438]
[1673400627488,64.28294255,1336.4,1336.3,0.0551438]
[1673400627697,60.93035516,1336.4,1336.3,0.0551438]
[1673400628068,61.78294255,1336.4,1336.3,0.0551438]
[1673400629740,61.24004659,1336.4,1336.3,0.0551438]
[1673400630583,66.84828937,1336.4,1336.3,0.0551438]
[1673400630940,62.58304659,1336.4,1336.3,0.0551438]
[1673400632827,62.58304659,1336.4,1336.2,0.21509284]
[1673400632828,14.853,1336.3,1336.2,0.21509284]
[1673400633033,67.43873139,1336.3,1336.2,0.21509284]
[1673400633213,68.1908504,1336.3,1336.2,0.21509284]
[1673400633430,58.67110285,1336.3,1336.2,0.21509284]
[1673400633642,58.18354831,1336.3,1336.2,0.21509284]
[1673400633997,61.84054831,1336.3,1336.2,0.21509284]
[1673400634213,56.84324511,1336.3,1336.2,0.21509284]
[1673400634424,38.52211965,1336.3,1336.2,0.21509284]
[1673400634577,53.48879965,1336.3,1336.2,0.21509284]
[1673400634793,46.00545965,1336.3,1336.2,0.21509284]
[1673400635049,41.00545965,1336.3,1336.2,0.21509284]
[1673400635683,40.25334064,1336.3,1336.2,0.21509284]
[1673400635846,47.73668064,1336.3,1336.2,0.21509284]
[1673400636296,47.96668064,1336.3,1336.2,0.21509284]
[1673400637625,48.71879965,1336.3,1336.2,0.21509284]
[1673400639450,59.61188062,1336.3,1336.2,0.21509284]
[1673400643016,56.25743516,1336.3,1336.2,0.21509284]
[1673400643278,48.71879965,1336.3,1336.2,0.21509284]
[1673400643496,52.07324511,1336.3,1336.2,0.21509284]
[1673400644542,41.23545965,1336.3,1336.2,0.21509284]
[1673400644753,21.78177965,1336.3,1336.2,0.21509284]
[1673400644926,18.02966064,1336.3,1336.2,0.21509284]
[1673400645136,18.02966064,1336.3,1336.2,1.11930912]
[1673400645352,18.02966064,1336.3,1336.2,0.21509284]
[1673400646213,21.02966064,1336.3,1336.2,0.21509284]
[1673400646536,43.47968064,1336.3,1336.2,0.21509284]
[1673400648227,43.48168064,1336.3,1336.2,0.21509284]
[1673400648379,43.47968064,1336.3,1336.2,0.21509284]
[1673400649762,28.51300064,1336.3,1336.2,0.21509284]
[1673400650494,35.99634064,1336.3,1336.2,0.21509284]
[1673400650693,35.99634064,1336.3,1336.2,0.16509284]
[1673400651108,43.47968064,1336.3,1336.2,0.16509284]
[1673400651798,35.99634064,1336.3,1336.2,0.16509284]
[1673400652527,43.47968064,1336.3,1336.2,0.16509284]
[1673400652734,35.99634064,1336.3,1336.2,0.16509284]
[1673400653755,28.51300064,1336.3,1336.2,0.16509284]
[1673400654514,35.99634064,1336.3,1336.2,0.16509284]
[1673400654945,28.51300064,1336.3,1336.2,0.16509284]
[1673400657626,21.02966064,1336.3,1336.2,0.16509284]
[1673400666300,17.232,1336.3,1336.2,0.16509284]
[1673400666496,17.002,1336.3,1336.2,9.1688692]
[1673400666708,17.002,1336.3,1336.2,9.23415992]
[1673400667408,17.002,1336.3,1336.2,10.57715992]
[1673400667612,17.002,1336.3,1336.2,25.54495992]
[1673400667613,14.002,1336.3,1336.2,25.54495992]
[1673400672451,14.002,1336.3,1336.2,25.54266169]
[1673400672976,14.002,1336.3,1336.2,18.05876169]
[1673400673495,14.002,1336.3,1336.2,25.54266169]
[1673400675176,14.002,1336.3,1336.2,18.05876169]
[1673400675383,14.002,1336.3,1336.2,25.54266169]
[1673400675605,14.002,1336.3,1336.2,18.05876169]
[1673400677122,14.002,1336.3,1336.2,25.54266169]
[1673400678324,14.002,1336.3,1336.2,18.05876169]
[1673400678745,14.002,1336.3,1336.2,19.21576169]
[1673400678945,14.002,1336.3,1336.2,24.19966169]
[1673400679155,14.002,1336.3,1336.2,16.71576169]
[1673400679733,17.002,1336.3,1336.2,16.71576169]
[1673400679943,17.002,1336.3,1336.2,15.19588533]
[1673400680110,17.002,1336.3,1336.2,7.71198533]
[1673400680685,17.002,1336.3,1336.2,0.22808533]
[1673400680993,17.002,1336.3,1336.2,2.93679461]
[1673400681207,17.002,1336.3,1336.2,10.42069461]
[1673400681421,17.002,1336.3,1336.2,10.48598533]
[1673400681993,17.002,1336.3,1336.2,3.00208533]
[1673400682317,17.002,1336.3,1336.2,10.42069461]
[1673400682521,17.002,1336.3,1336.2,3.00208533]
[1673400682735,17.002,1336.3,1336.2,2.93679461]
[1673400683928,17.002,1336.3,1336.2,10.42069461]
[1673400684208,17.002,1336.3,1336.2,10.48598533]
[1673400685517,17.002,1336.3,1336.2,3.00208533]
[1673400685737,17.002,1336.3,1336.2,2.93679461]
[1673400687160,17.002,1336.3,1336.2,0.16279461]
[1673400689074,17.002,1336.3,1336.2,2.93679461]
[1673400689470,17.002,1336.3,1336.2,17.90459461]
[1673400689678,17.002,1336.3,1336.2,17.96988533]
[1673400690893,20.79966064,1336.3,1336.2,0.22808533]
[1673400691045,36.55784064,1336.3,1336.2,0.16279461]
[1673400691255,36.57644468,1336.3,1336.2,0.16279461]
[1673400692002,44.05978468,1336.3,1336.2,0.16279461]
[1673400692213,43.21877269,1336.3,1336.2,0.16279461]
[1673400692633,28.25209269,1336.3,1336.2,0.16279461]
[1673400693887,28.25209269,1336.3,1336.2,0.16036338]
[1673400694193,35.73543269,1336.3,1336.2,0.16036338]
[1673400695762,43.21877269,1336.3,1336.2,0.16036338]
[1673400696410,35.73543269,1336.3,1336.2,0.16036338]
[1673400696626,28.25209269,1336.3,1336.2,0.16036338]
[1673400698831,28.25209269,1336.3,1336.2,2.43736338]
[1673400699064,17.5635,1336.3,1336.2,4.95736338]
[1673400699375,14.002,1336.3,1336.2,12.44126338]
[1673400699579,14.002,1336.3,1336.2,12.5065541]
[1673400700337,14.002,1336.3,1336.2,5.0226541]
[1673400700552,17.002,1336.3,1336.2,5.0226541]
[1673400701863,17.002,1336.3,1336.2,5.52491951]
[1673400702559,17.002,1336.3,1336.2,13.00881951]
[1673400703335,17.002,1336.3,1336.2,20.49271951]
[1673400704850,3.002,1336.3,1336.2,13.00881951]
[1673400705071,3.0,1336.3,1336.2,13.00881951]
[1673400705376,3.0,1336.3,1336.2,5.52491951]
[1673400705589,17.0,1336.3,1336.2,5.52491951]
[1673400705755,17.002,1336.3,1336.2,5.52491951]
[1673400705969,17.002,1336.3,1336.2,13.00881951]
[1673400708819,17.002,1336.3,1336.2,20.49271951]
[1673400709157,17.002,1336.3,1336.2,27.97661951]
[1673400710495,0.002,1336.3,1336.2,27.97661951]
[1673400710703,0.064,1336.4,1336.2,27.97661951]
[1673400710704,14.002,1336.5,1336.3,0.002]
[1673400710913,14.002,1336.5,1336.4,1.686]
[1673400711155,14.002,1336.5,1336.4,9.16878]
[1673400711337,14.002,1336.5,1336.4,16.71685072]
[1673400711551,14.002,1336.5,1336.4,24.19963072]
[1673400711892,14.002,1336.5,1336.4,27.36809179]
[1673400713435,0.002,1336.5,1336.4,27.36809179]
[1673400713629,0.064,1336.6,1336.4,27.36809179]
[1673400713630,3.0,1336.6,1336.4,27.36809179]
[1673400714678,3.0,1336.6,1336.4,19.88531179]
[1673400714928,3.0,1336.6,1336.5,1.98853118]
[1673400715880,3.0,1336.6,1336.5,9.47075118]
[1673400716085,3.0,1336.6,1336.5,17.0182619]
[1673400716326,24.1509,1336.7,1336.5,17.0182619]
[1673400716476,0.002,1336.7,1336.6,1.686]
[1673400716687,14.5613,1336.9,1336.6,19.26752819]
[1673400716688,23.7831,1336.9,1336.6,19.26752819]
[1673400717020,23.7831,1336.9,1336.6,0.06529072]
[1673400717021,49.95674064,1336.9,1336.6,0.06529072]
[1673400717213,2.0,1336.8,1336.4,33.78284072]
[1673400717427,9.48071,1336.8,1336.4,41.26544072]
[1673400717645,9.48271,1336.8,1336.4,41.26544072]
[1673400718047,16.98202404,1336.8,1336.4,33.78284072]
[1673400718295,16.98202404,1336.8,1336.4,38.94319079]
[1673400718997,20.77968468,1336.8,1336.4,38.94319079]
[1673400719413,11.29897468,1336.8,1336.4,46.42597079]
[1673400719745,26.26023468,1336.8,1336.4,31.46084079]
[1673400719961,26.26023468,1336.8,1336.4,38.94359079]
[1673400720200,31.89981269,1336.8,1336.4,38.94912023]
[1673400721250,3.79766064,1336.7,1336.4,22.30402016]
[1673400721461,11.27899064,1336.7,1336.4,22.29849072]
[1673400721621,3.0,1336.6,1336.4,22.29849072]
[1673400722038,5.5,1336.6,1336.4,22.29849072]
[1673400722253,7.02179204,1336.6,1336.4,14.65379072]
[1673400722516,14.50362204,1336.6,1336.4,0.06529072]
[1673400722704,14.50362204,1336.6,1336.3,0.002]
[1673400723043,2.5,1336.5,1336.3,0.002]
[1673400723727,2.5,1336.5,1336.2,7.8852541]
[1673400723728,0.00050793,1336.3,1336.2,7.8852541]
[1673400724774,0.00050793,1336.3,1336.2,0.2256541]
[1673400724983,0.00050793,1336.3,1336.2,0.16036338]
[1673400725616,0.00050793,1336.3,1336.2,7.64426338]
[1673400725820,0.00050793,1336.3,1336.2,0.2256541]
[1673400726034,0.00050793,1336.3,1336.2,0.16036338]
[1673400728513,0.00050793,1336.3,1336.2,2.68036338]
[1673400728818,0.00050793,1336.3,1336.2,10.16426338]
[1673400729013,0.00050793,1336.3,1336.2,10.2295541]
[1673400730040,0.00050793,1336.3,1336.2,17.7134541]
[1673400730292,0.00050793,1336.3,1336.2,30.79748851]
[1673400731463,0.00050793,1336.3,1336.2,15.82968851]
[1673400731675,0.00050793,1336.3,1336.2,23.31358851]
[1673400732851,0.00050793,1336.3,1336.2,30.79748851]
[1673400734283,0.00050793,1336.3,1336.2,23.31358851]
[1673400735365,0.00050793,1336.3,1336.2,30.79748851]
[1673400738515,9.8704,1336.5,1336.2,28.11712513]
[1673400741619,9.8704,1336.5,1336.2,26.43112513]
[1673400741978,9.8704,1336.5,1336.2,26.18112513]
[1673400744553,9.8704,1336.5,1336.4,7.48278]
[1673400744873,9.8704,1336.5,1336.4,7.54807072]
[1673400744874,3.5634,1336.5,1336.4,7.54807072]
[1673400745084,3.5614,1336.5,1336.4,7.54807072]
[1673400747253,3.5614,1336.5,1336.4,0.06529072]
[1673400747465,3.5614,1336.5,1336.4,7.48278]
[1673400747810,3.5614,1336.5,1336.4,7.54807072]
[1673400747811,3.0,1336.5,1336.4,7.54807072]
[1673400749335,3.0,1336.5,1336.4,15.03085072]
[1673400750853,3.0,1336.5,1336.4,7.54807072]
[1673400752596,3.0,1336.5,1336.4,15.03085072]
[1673400752962,3.0,1336.5,1336.4,7.54807072]
[1673400755648,3.0,1336.5,1336.4,0.06529072]
[1673400756024,3.0,1336.5,1336.3,22.8460823]
[1673400764631,3.0,1336.5,1336.3,15.3629923]
[1673400765602,3.0,1336.5,1336.3,7.8799323]
[1673400767715,3.0,1336.5,1336.3,15.3632723]
[1673400771985,3.0,1336.5,1336.3,15.35943662]
[1673400775774,3.0,1336.5,1336.3,18.35943662]
[1673400776743,3.0,1336.5,1336.3,25.84277662]
[1673400777080,3.0,1336.5,1336.4,17.54983766]
[1673400777245,3.0,1336.5,1336.4,15.03085072]
[1673400777452,3.0,1336.5,1336.4,22.51363072]
[1673400779558,19.1856,1336.6,1336.4,22.51363072]
[1673400779559,33.1856,1336.6,1336.4,22.51363072]
[1673400779828,33.1216,1336.6,1336.4,22.51363072]
[1673400780181,14.002,1336.6,1336.4,22.51363072]
[1673400780647,14.002,1336.6,1336.4,26.12460371]
[1673400781386,0.002,1336.6,1336.4,26.12460371]
[1673400781608,12.0244,1336.7,1336.4,26.12460371]
[1673400781910,3.002,1336.7,1336.4,30.59568197]
[1673400782083,3.0,1336.7,1336.6,22.44498]
[1673400782295,3.0,1336.7,1336.6,24.92336872]
[1673400783333,3.066,1336.8,1336.6,24.92336872]
[1673400783544,3.0,1336.8,1336.6,24.92336872]
[1673400787271,3.0,1336.8,1336.6,7.54689072]
[1673400787479,3.0,1336.8,1336.6,15.02855072]
[1673400793020,2.99755447,1336.8,1336.6,15.02855072]
[1673400795367,2.99755447,1336.8,1336.6,22.51021072]
[1673400795586,2.99755447,1336.8,1336.6,15.02855072]
[1673400797253,2.99755447,1336.8,1336.6,22.51021072]
[1673400798087,2.99755447,1336.8,1336.6,15.02855072]
[1673400799391,2.74755447,1336.8,1336.6,15.02855072]
[1673400799606,2.74755447,1336.8,1336.6,18.0283087]
[1673400800465,2.74755447,1336.8,1336.6,25.5099687]
[1673400807546,9.2826,1336.9,1336.6,25.5099687]
[1673400807865,9.2186,1336.9,1336.6,25.5099687]
[1673400811440,9.2186,1336.9,1336.6,27.1909687]
[1673400811650,9.2186,1336.9,1336.7,1.94482853]
[1673400811877,9.2186,1336.9,1336.8,14.9611]
[1673400812082,9.2186,1336.9,1336.8,15.02639072]
[1673400812412,12.2186,1336.9,1336.8,15.02639072]
[1673400812635,12.2186,1336.9,1336.8,22.50694072]
[1673400812783,3.002,1336.9,1336.8,22.50694072]
[1673400812999,3.0,1336.9,1336.8,22.50694072]
[1673400815203,3.0,1336.9,1336.8,25.86878265]
[1673400815415,0.002,1336.9,1336.8,25.86678265]
[1673400815657,17.02395436,1337.0,1336.8,25.86878265]
[1673400817341,0.08693809,1337.1,1337.0,1.08965783]
[1673400817534,0.02493809,1337.1,1337.0,25.49151361]
[1673400817740,0.02293809,1337.1,1337.0,25.55680433]
[1673400817949,0.02293809,1337.1,1337.0,23.87080433]
[1673400818411,0.02293809,1337.1,1337.0,27.22980433]
[1673400819987,0.02293809,1337.1,1337.0,1.43251433]
[1673400820196,0.02293809,1337.1,1337.0,8.84665361]
[1673400820357,0.02293809,1337.1,1337.0,8.91194433]
[1673400821093,0.02293809,1337.1,1337.0,23.87080433]
[1673400824138,0.02293809,1337.1,1337.0,1.43251433]
[1673400824347,0.02293809,1337.1,1337.0,8.84665361]
[1673400824560,0.02293809,1337.1,1337.0,16.39137433]
[1673400824995,0.02293809,1337.1,1337.0,23.87080433]
[1673400827214,0.02293809,1337.1,1337.0,16.39137433]
[1673400828148,0.02293809,1337.1,1337.0,8.91194433]
[1673400828359,0.02293809,1337.1,1337.0,1.15494855]
[1673400828587,0.02293809,1337.1,1337.0,1.08965783]
[1673400829282,0.02293809,1337.1,1337.0,8.56908783]
[1673400829546,0.02293809,1337.1,1337.0,16.11380855]
[1673400831145,0.02293809,1337.1,1337.0,8.63437855]
[1673400831445,0.02293809,1337.1,1337.0,1.15494855]
[1673400831598,0.02293809,1337.1,1337.0,1.08965783]
[1673400831812,0.02293809,1337.1,1337.0,8.56908783]
[1673400832018,0.02293809,1337.1,1337.0,8.63437855]
[1673400833548,0.02293809,1337.1,1337.0,7.54472072]
[1673400833702,0.02293809,1337.1,1337.0,15.02415072]
[1673400834333,0.02293809,1337.1,1337.0,25.75246976]
[1673400840893,0.02293809,1337.1,1337.0,18.27303976]
[1673400841121,0.02293809,1337.1,1337.0,25.75246976]
[1673400841481,0.02293809,1337.1,1337.0,25.75028355]
[1673400846146,0.02293809,1337.1,1337.0,27.43628355]
[1673400848367,0.02293809,1337.1,1337.0,29.11928355]
[1673400849511,0.02062533,1337.1,1337.0,29.11928355]
[1673400854615,9.11241671,1337.4,1337.0,29.11928355]
[1673400854791,9.11241671,1337.4,1337.0,22.50139451]
[1673400854792,0.5611,1337.3,1337.0,22.50139451]
[1673400858583,11.69712075,1337.4,1337.0,22.50139451]
[1673400858800,9.13112075,1337.4,1337.0,22.50139451]
[1673400859020,9.13112075,1337.4,1337.0,27.69511208]
[1673400859766,9.13112075,1337.4,1337.0,29.38111208]
[1673400861238,9.13112075,1337.4,1337.1,1.681]
[1673400861397,9.11251671,1337.4,1337.2,22.43493]
[1673400861606,9.11251671,1337.4,1337.2,22.50022072]
[1673400861607,9.16251671,1337.4,1337.2,22.50022072]
[1673400865022,9.16251671,1337.4,1337.2,25.49810179]
[1673400868751,8.60141671,1337.4,1337.2,25.49810179]
[1673400873398,8.60141671,1337.4,1337.2,25.49610179]
[1673400873399,8.60341671,1337.4,1337.2,25.49610179]
[1673400873641,8.60141671,1337.4,1337.2,25.49810179]
[1673400873812,8.60141671,1337.4,1337.2,22.50022072]
[1673400879308,0.05,1337.4,1337.3,2.5]
[1673400879503,3.0,1337.4,1337.3,24.93325]
[1673400879707,3.0,1337.4,1337.3,24.99854072]
[1673400879920,3.09450074,1337.5,1337.3,24.99854072]
[1673400880147,3.02850074,1337.5,1337.3,24.99854072]
[1673400880356,3.02850074,1337.5,1337.3,28.24587879]
[1673400880745,3.02850074,1337.5,1337.3,25.74587879]
[1673400893434,52.35654457,1337.7,1337.6,1.00068466]
[1673400893435,29.88994457,1337.7,1337.6,1.00068466]
[1673400893602,0.02994457,1337.7,1337.6,30.90496466]
[1673400893811,0.02994457,1337.7,1337.6,34.81402362]
[1673400894239,0.02994457,1337.7,1337.6,36.66901922]
[1673400894450,0.02994457,1337.7,1337.6,34.81402362]
[1673400896217,0.02994457,1337.7,1337.6,27.33795362]
[1673400897326,0.02994457,1337.7,1337.6,23.49418538]
[1673400900612,2.31794457,1337.7,1337.6,23.49418538]
[1673400900828,2.31794457,1337.7,1337.6,1.06597538]
[1673400901020,2.31794457,1337.7,1337.6,1.00068466]
[1673400902047,4.31794457,1337.7,1337.6,1.00068466]
[1673400902262,10.5517561,1337.7,1337.6,1.00068466]
[1673400902747,25.5027761,1337.7,1337.6,1.00068466]
[1673400902893,19.7132661,1337.7,1337.6,1.00068466]
[1673400903104,31.34221284,1337.7,1337.6,1.00068466]
[1673400903366,2.5,1337.6,1337.5,1.95033162]
[1673400903715,42.42251878,1337.6,1337.5,1.95033162]
[1673400904082,47.46551878,1337.6,1337.5,1.95033162]
[1673400904294,47.48412282,1337.6,1337.5,1.95033162]
[1673400904515,52.53212282,1337.6,1337.5,3.162e-05]
[1673400904697,52.53212282,1337.6,1337.0,3.0]
[1673400904698,2.5,1337.5,1337.0,3.0]
[1673400904890,1.686,1337.2,1337.0,3.0]
[1673400905320,12.16433,1337.2,1337.0,3.0]
[1673400905517,4.686,1337.2,1337.0,3.0]
[1673400905730,12.16438,1337.2,1337.0,3.0]
[1673400908047,19.64276,1337.2,1337.0,3.0]
[1673400908305,22.3632724,1337.2,1337.0,3.0]
[1673400908834,5.48366064,1337.1,1337.0,3.0]
[1673400908994,12.96253064,1337.1,1337.0,3.0]
[1673400909451,27.92027064,1337.1,1337.0,3.0]
[1673400909784,9.27486064,1337.1,1337.0,3.0]
[1673400909934,19.06297494,1337.1,1337.0,3.0]
[1673400910300,11.35410494,1337.1,1337.0,3.0]
[1673400911444,9.66810494,1337.1,1337.0,3.0]
[1673400911824,9.66810494,1337.1,1337.0,10.47943]
[1673400912073,6.79766064,1337.1,1337.0,10.54472072]
[1673400912502,6.79766064,1337.1,1337.0,3.06529072]
[1673400912694,6.79766064,1337.1,1337.0,3.0]
[1673400913786,6.79766064,1337.1,1337.0,10.47943]
[1673400913983,6.79766064,1337.1,1337.0,10.48943]
[1673400914137,6.79766064,1337.1,1337.0,3.06529072]
[1673400914138,3.0,1337.1,1337.0,3.06529072]
[1673400914346,5.3131,1337.2,1337.0,3.0]
[1673400914552,10.10303104,1337.2,1337.0,3.0]
[1673400914812,17.58142104,1337.2,1337.0,3.0]
[1673400917179,25.05981104,1337.2,1337.0,3.0]
[1673400918607,17.58142104,1337.2,1337.0,3.0]
[1673400918766,17.58142104,1337.2,1337.0,2.95]
[1673400918984,25.05973104,1337.2,1337.0,2.95]
[1673400920022,17.58134104,1337.2,1337.0,2.95]
[1673400920759,5.2471,1337.2,1337.0,2.95]
[1673400920968,4.686,1337.2,1337.0,2.95]
[1673400921962,12.16437,1337.2,1337.0,2.95]
[1673400922344,19.64274,1337.2,1337.0,2.95]
[1673400924641,19.28974,1337.2,1337.0,2.95]
[1673400925711,26.76811,1337.2,1337.0,2.95]
[1673400930373,29.10454242,1337.2,1337.0,2.95]
[1673400932165,3.841,1337.1,1337.0,2.95]
[1673400932374,6.841,1337.1,1337.0,2.95]
[1673400932529,29.27761,1337.1,1337.0,2.95]
[1673400933477,29.43915513,1337.1,1337.0,2.95]
[1673400933688,33.88607735,1337.1,1337.0,2.95]
[1673400934104,31.38607735,1337.1,1337.0,2.95]
[1673400935790,35.74493799,1337.1,1337.0,2.95]
[1673400936123,35.18373799,1337.1,1337.0,2.95]
[1673400941987,27.70486799,1337.1,1337.0,2.95]
[1673400942403,27.70486799,1337.1,1337.0,2.94630427]
[1673400944084,35.18373799,1337.1,1337.0,2.94630427]
[1673400944317,27.70486799,1337.1,1337.0,2.94630427]
[1673400944628,35.18373799,1337.1,1337.0,2.94630427]
[1673400947237,27.70486799,1337.1,1337.0,2.94630427]
[1673400948811,35.18373799,1337.1,1337.0,2.94630427]
[1673400951019,27.70486799,1337.1,1337.0,2.94630427]
[1673400954833,35.18373799,1337.1,1337.0,2.94630427]
[1673400955047,27.70486799,1337.1,1337.0,2.94630427]
[1673400956019,35.18373799,1337.1,1337.0,2.94630427]
[1673400956163,27.70486799,1337.1,1337.0,2.94630427]
[1673400957704,35.18373799,1337.1,1337.0,2.94630427]
[1673400959370,27.70486799,1337.1,1337.0,2.94630427]
[1673400959585,35.18373799,1337.1,1337.0,2.94630427]
[1673400962225,33.84273799,1337.1,1337.0,2.94630427]
[1673400965864,11.40612799,1337.1,1337.0,2.94630427]
[1673400966102,3.16154513,1337.1,1337.0,2.94630427]
[1673400966915,3.16154513,1337.1,1337.0,2.94385023]
[1673400970181,3.16154513,1337.1,1337.0,17.90271023]
[1673400970182,0.16154513,1337.1,1337.0,17.90271023]
[1673400970527,23.8266,1337.4,1337.0,25.44743095]
[1673400970681,23.8266,1337.4,1337.0,30.99542797]
[1673400970682,27.55826064,1337.4,1337.0,30.99542797]
[1673400971036,27.55826064,1337.4,1337.1,25.5355228]
[1673400971206,27.55826064,1337.4,1337.1,25.60081352]
[1673400971422,3.0,1337.3,1337.1,25.60081352]
[1673400971816,4.42476064,1337.4,1337.1,25.60081352]
[1673400971985,3.79766064,1337.4,1337.1,25.60081352]
[1673400972188,3.79766064,1337.4,1337.2,10.03817135]
[1673400972424,3.79766064,1337.4,1337.2,10.10346207]
[1673400972571,18.5845,1337.5,1337.2,10.10346207]
[1673400972770,22.31616064,1337.5,1337.2,10.10346207]
[1673400972982,3.0,1337.4,1337.2,10.10346207]
[1673400973401,3.0,1337.4,1337.2,2.62537207]
[1673400973611,3.0,1337.4,1337.2,2.56008135]
[1673400976388,3.0,1337.4,1337.3,0.25600813]
[1673400978386,3.0,1337.4,1337.2,2.56008135]
[1673400978700,3.0,1337.4,1337.2,10.03828135]
[1673400978919,3.0,1337.4,1337.2,10.10357207]
[1673400979360,3.0,1337.4,1337.2,2.62537207]
[1673400979654,3.0,1337.4,1337.2,2.56008135]
[1673400981605,17.95484,1337.4,1337.2,2.56008135]
[1673400982351,10.47742,1337.4,1337.2,2.56008135]
[1673400982541,10.47742,1337.4,1337.1,18.44173352]
[1673400983188,21.75250064,1337.4,1337.1,15.34219072]
[1673400983415,29.22992064,1337.4,1337.1,15.34219072]
[1673400983612,29.24852468,1337.4,1337.1,15.34219072]
[1673400991403,30.93252468,1337.4,1337.1,15.34219072]
[1673400993612,30.93252468,1337.4,1337.1,15.33971773]
[1673400998658,16.53878468,1337.4,1337.1,15.33971773]
[1673400998828,24.01620468,1337.4,1337.1,15.33971773]
[1673400999202,31.49362468,1337.4,1337.1,15.33971773]
[1673401003342,35.90189101,1337.4,1337.1,15.33971773]
[1673401009593,39.24214959,1337.4,1337.1,15.33971773]
[1673401010254,35.90189101,1337.4,1337.1,15.33971773]
[1673401010452,39.24214959,1337.4,1337.1,15.33971773]
[1673401010643,35.90189101,1337.4,1337.1,15.33971773]
[1673401010887,31.49362468,1337.4,1337.1,15.33971773]
[1673401011431,24.01620468,1337.4,1337.1,15.33971773]
[1673401014051,22.33220468,1337.4,1337.1,15.33971773]
[1673401015094,14.85478468,1337.4,1337.1,15.33971773]
[1673401016423,22.33197468,1337.4,1337.1,15.33971773]
[1673401016788,22.33197468,1337.4,1337.1,18.98488203]
[1673401017171,14.85455468,1337.4,1337.1,18.98488203]
[1673401017380,14.85655468,1337.4,1337.1,18.98288203]
[1673401017736,10.71762326,1337.4,1337.1,26.46114522]
[1673401017914,3.57970404,1337.4,1337.1,26.46114522]
[1673401019424,11.05701404,1337.4,1337.1,18.98230522]